lending/lending_fUSD_20240131
["ID","MTS","AMOUNT","RATE_DAILY","PERIOD"]
[313100231,1706741463845,-719.21,0.00040547,5]
[313100232,1706741463854,-525.06,0.00040547,5]
[313100233,1706741463864,-842.96,0.00040547,5]
[313100234,1706741463874,-812.18,0.00040547,5]
[313100235,1706741463883,-1780.38,0.00040547,5]
[313100236,1706741463893,-794.7,0.00040547,5]
[313100237,1706741463902,-1261.55,0.00040547,5]
[313100238,1706741463910,-540.51,0.00040547,5]
[313100239,1706741463920,-1785.32,0.00040547,5]
[313100240,1706741463930,-581.17,0.00040547,5]
[313100241,1706741463939,-500.0,0.00040547,5]
[313100242,1706741463948,-500.0,0.00040547,5]
[313100243,1706741463957,-3815.84,0.00040547,5]
[313100244,1706741463966,-1505.83,0.00040547,5]
[313100245,1706741463975,-606.39058478,0.00040547,5]
[313100246,1706741463984,-500.0,0.00040547,5]
[313100247,1706741463993,-672.7,0.00040547,5]
[313100248,1706741464002,-1056.79,0.00040547,5]
[313100249,1706741464011,-744.36,0.00040547,5]
[313100250,1706741464020,-1344.23,0.00040547,5]
[313100251,1706741464029,-500.0,0.00040547,5]
[313100252,1706741464038,-997.16,0.00040547,5]
[313100253,1706741464047,-812.12,0.00040547,5]
[313100254,1706741464056,-500.0,0.00040547,5]
[313100255,1706741464066,-652.83,0.00040547,5]
[313100256,1706741464076,-5284.67,0.00040547,5]
[313100257,1706741464085,-1155.57,0.00040547,5]
[313100258,1706741464095,-984.06,0.00040547,2]
[313100259,1706741464104,-500.0,0.00040547,5]
[313100260,1706741464113,-791.3,0.00040547,5]
[313100261,1706741464122,-500.0,0.00040547,5]
[313100262,1706741464131,-596.86,0.00040547,5]
[313100263,1706741464140,-500.0,0.00040547,5]
[313100264,1706741464152,-500.0,0.00040547,5]
[313100265,1706741464161,-500.0,0.00040547,5]
[313100266,1706741464171,-500.0,0.00040547,5]
[313100267,1706741464183,-500.0,0.00040547,5]
[313100268,1706741464195,-500.0,0.00040547,5]
[313100269,1706741464204,-3353.69,0.00040547,5]
[313100270,1706741464213,-1524.13,0.00040547,5]
[313100271,1706741464224,-20006.34,0.00040547,5]
[313100272,1706741464233,-678.92,0.00040547,5]
[313100273,1706741464243,-500.0,0.00040547,5]
[313100274,1706741464254,-500.0,0.00040547,5]
[313100275,1706741464263,-500.0,0.00040547,5]
[313100276,1706741464272,-1246.27,0.00040547,5]
[313100277,1706741464281,-2048.97,0.00040547,5]
[313100278,1706741464290,-584.9,0.00040547,5]
[313100279,1706741464299,-500.0,0.00040547,5]
[313100280,1706741464308,-500.0,0.00040547,5]
[313100281,1706741464317,-500.0,0.00040547,5]
[313100282,1706741464326,-1511.96,0.00040547,5]
[313100283,1706741464337,-811.79,0.00040547,5]
[313100284,1706741464347,-500.0,0.00040547,5]
[313100285,1706741464356,-948.65,0.00040547,5]
[313100286,1706741464366,-500.0,0.00040547,5]
[313100287,1706741464375,-500.0,0.00040547,5]
[313100288,1706741464384,-605.81,0.00040547,5]
[313100289,1706741464393,-1484.95,0.00040547,5]
[313100290,1706741464402,-500.0,0.00040547,5]
[313100291,1706741464411,-500.0,0.00040547,5]
[313100292,1706741464420,-742.82,0.00040547,5]
[313100293,1706741464429,-500.0,0.00040547,5]
[313100294,1706741464438,-500.0,0.00040547,5]
[313100295,1706741464447,-531.63,0.00040547,5]
[313100296,1706741464456,-2628.35,0.00040547,5]
[313100297,1706741464466,-500.0,0.00040547,5]
[313100298,1706741464476,-500.0,0.00040547,5]
[313100299,1706741464485,-1957.6,0.00040547,5]
[313100300,1706741464495,-800.64,0.00040547,5]
[313100301,1706741464506,-3247.43,0.00040547,5]
[313100302,1706741464515,-500.0,0.00040547,5]
[313100303,1706741464525,-963.87,0.00040547,5]
[313100304,1706741464535,-1619.55,0.00040547,5]
[313100305,1706741464544,-500.0,0.00040547,5]
[313100306,1706741464553,-500.0,0.00040547,5]
[313100307,1706741464562,-500.0,0.00040547,5]
[313100308,1706741464571,-729.97,0.00040547,5]
[313100309,1706741464580,-1000.0,0.00040547,7]
[313100310,1706741464590,-500.0,0.00040547,5]
[313100311,1706741464599,-500.0,0.00040547,5]
[313100312,1706741464609,-500.0,0.00040547,5]
[313100313,1706741464618,-823.24,0.00040547,5]
[313100314,1706741464628,-791.85,0.00040547,5]
[313100315,1706741464637,-1315.53,0.00040547,5]
[313100316,1706741464647,-500.0,0.00040547,5]
[313100317,1706741464658,-500.0,0.00040547,5]
[313100318,1706741464667,-587.33,0.00040547,5]
[313100319,1706741464676,-1000.0,0.00040547,2]
[313100320,1706741464685,-500.0,0.00040547,5]
[313100321,1706741464696,-1126.15,0.00040547,5]
[313100322,1706741464706,-1000.23,0.00040547,5]
[313100323,1706741464715,-500.0,0.00040547,5]
[313100324,1706741464724,-1657.29,0.00040547,5]
[313100325,1706741464734,-500.0,0.00040547,5]
[313100326,1706741464743,-608.75,0.00040547,5]
[313100327,1706741464752,-319.96,0.0004061,2]
[313100328,1706741464761,-200.0,0.00040669,7]
[313100329,1706741464770,-1000.0,0.00040733,2]
[313100330,1706741464781,-914.0,0.00040772,7]
[313100331,1706741464790,-535.0,0.00040772,7]
[313100332,1706741464800,-547.0,0.00040772,7]
[313100333,1706741464809,-1000.0,0.000408,30]
[313100334,1706741464819,-157.67685168,0.00040812,30]
[313100335,1706741464828,-1688.01,0.00040826,14]
[313100336,1706741464837,-1260.52463469,0.00040834,14]
[313100337,1706741465789,-1483.24999999,0.000377,3]
[313100338,1706741465801,-389.75050031,0.000377,3]
[313100339,1706741466228,-1172.9894997,0.000377,3]
[313100340,1706741466237,-3045.99,0.000377,3]
[313100341,1706741466246,-3045.99,0.000377,3]
[313100342,1706741466256,-3045.99,0.000377,3]
[313100343,1706741466266,-3045.99,0.000377,3]
[313100344,1706741466275,-3045.99,0.000377,3]
[313100345,1706741466284,-3045.99,0.000377,3]
[313100346,1706741466294,-3045.99,0.000377,3]
[313100347,1706741466303,-3045.99,0.000377,3]
[313100348,1706741466312,-3045.99,0.000377,3]
[313100349,1706741466322,-1217.99742451,0.000377,3]
[313100350,1706741466334,-1257.2742,0.000377,3]
[313100351,1706741466778,-1367.79,0.000229,2]
[313100352,1706741466878,-604.42572088,0.000229,2]
[313100353,1706741466888,-370.19952752,0.000377,3]
[313100354,1706741466904,-200.51884797,0.000377,3]
[313100355,1706741466917,-225.48115203,0.000377,3]
[313100356,1706741533552,254.09824576,0.00020425,2]
[313100357,1706741544068,1543.39593485,0.00021787,2]
[313100358,1706741624090,3176.81093122,0.00021787,2]
[313100359,1706741647546,2723.279999,0.0002,2]
[313100360,1706741674563,200.0721745,0.00021787,2]
[313100361,1706741862707,150.0,0.00022,2]
[313100362,1706741985731,150.0044,0.00022497,2]
[313100363,1706742123989,204.0,0.00021728,2]
[313100364,1706742178929,287.22,0.00022146,2]
[313100366,1706742480311,472.5176,0.00022497,2]
[313100367,1706742530189,151.95,0.00022466,2]
[313100368,1706742536857,200.0,0.00022466,2]
[313100369,1706742602721,346.68,0.00020389,2]
[313100370,1706742613405,2411.3271,0.000225,2]
[313100371,1706742620125,250.0,0.0002223,2]
[313100372,1706742631925,-623.61336508,0.00022551,2]
[313100373,1706742631935,-539.49430614,0.00022552,2]
[313100374,1706742631946,-782.89,0.00022574,2]
[313100375,1706742631957,-1611.20312233,0.0002259,2]
[313100376,1706742631967,-3652.93282628,0.00022597,2]
[313100377,1706742631979,-570.19533769,0.00022598,2]
[313100378,1706742631990,-150.0,0.00022599,2]
[313100379,1706742632000,-7104.18960236,0.000226,2]
[313100380,1706742632022,-351.10664586,0.000226,2]
[313100381,1706742632034,-588.94638895,0.000226,2]
[313100382,1706742632047,-431.46487485,0.000226,2]
[313100383,1706742632060,-600.1261207,0.000226,2]
[313100384,1706742632081,-119594.05794683,0.000226,2]
[313100385,1706742632093,-373088.00482045,0.000226,2]
[313100386,1706742632102,-251.8252,0.000226,2]
[313100387,1706742632115,-209.3,0.00022635,2]
[313100388,1706742632125,-346.68,0.00022652,2]
[313100389,1706742632134,-199.08692812,0.00022696,2]
[313100390,1706742632145,-245.5706,0.00022697,2]
[313100391,1706742632155,-1257.2742,0.00022697,2]
[313100392,1706742632164,-723.3062,0.00022698,2]
[313100393,1706742632175,-129709.35521975,0.000227,2]
[313100394,1706742632185,-1000.0,0.00022715,2]
[313100395,1706742632194,-210.0,0.00022798,2]
[313100396,1706742632204,-499.99,0.00022798,2]
[313100397,1706742632214,-175.25,0.00022824,2]
[313100399,1706742632223,-1195.37514254,0.00022899,2]
[313100402,1706742632233,-308308.84932373,0.000229,2]
[313100405,1706742632242,-181.70536632,0.000229,2]
[313100408,1706742632251,-174.81674432,0.000229,2]
[313100411,1706742632261,-5092.92911574,0.000229,2]
[313100414,1706742632270,-203.03348938,0.000229,2]
[313100417,1706742632280,-333.07208653,0.000229,2]
[313100420,1706742632289,-852.54803619,0.000229,2]
[313100423,1706742632299,-6425.02754569,0.000229,2]
[313100426,1706742632308,-156.53137645,0.000229,2]
[313100428,1706742632319,-13686.05,0.00022934,2]
[313100430,1706742632328,-437564.79365784,0.00022999,2]
[313100433,1706742632344,-372.04136223,0.00022999,2]
[313100435,1706742632360,-21732.5064755,0.00022999,2]
[313100437,1706742632371,-1184.4109398,0.00022999,2]
[313100439,1706742632383,-2657.13168263,0.00022999,2]
[313100510,1706742638340,-332.67449298,0.00022999,2]
[313100511,1706742638396,-281195.06189801,0.00022999,2]
[313100512,1706742638406,-130974.7209874,0.00023,2]
[313100513,1706742638416,-165.79,0.0002307,2]
[313100514,1706742638426,-7231.22096402,0.0002313,2]
[313100515,1706742638436,-151.12,0.00023386,2]
[313100516,1706742638447,-2000.0,0.00023477,2]
[313100517,1706742638456,-250.0,0.00023761,2]
[313100518,1706742638466,-358.58,0.00023883,2]
[313100519,1706742638475,-201.6881805,0.00024,2]
[313100520,1706742638485,-205.0,0.00024208,2]
[313100521,1706742638495,-499.99,0.00024208,2]
[313100522,1706742638504,-782.89,0.00024218,2]
[313100523,1706742638515,-2566.93,0.00024384,2]
[313100524,1706742638524,-1928.34,0.00024384,2]
[313100525,1706742638534,-5092.92911566,0.00024629,2]
[313100526,1706742638543,-250.0,0.00024658,2]
[313100527,1706742638553,-1873.48,0.00024658,2]
[313100528,1706742638562,-5123.51,0.00024658,4]
[313100529,1706742638571,-346.68,0.00024916,2]
[313100530,1706742638580,-2319.98350189,0.00025,2]
[313100531,1706742638591,-936.20607359,0.00025,2]
[313100532,1706742638601,-300.22453575,0.00025,2]
[313100533,1706742638610,-208.41030953,0.00025,4]
[313100534,1706742638619,-350.0,0.00025,3]
[313100535,1706742638628,-3652.93282624,0.00025355,2]
[313100536,1706742638639,-1000.0,0.00025555,2]
[313100537,1706742638649,-782.89,0.00025862,2]
[313100538,1706742638660,-150.0,0.00026079,2]
[313100539,1706742638670,-5092.92911566,0.00026357,2]
[313100540,1706742638679,-416.74046283,0.00027,2]
[313100541,1706742638688,-400.0,0.00027,3]
[313100542,1706742638698,-346.68,0.0002718,2]
[313100543,1706742638707,-530.0,0.00027397,2]
[313100544,1706742638717,-1590.73,0.00027397,3]
[313100545,1706742638726,-12944.08874246,0.000275,2]
[313100546,1706742638735,-782.89,0.00027506,2]
[313100547,1706742638744,-156.53137645,0.00027567,2]
[313100548,1706742638755,-174.81674429,0.00027654,2]
[313100549,1706742638764,-205.0,0.00027787,7]
[313100550,1706742638773,-690.93601058,0.00028,2]
[313100551,1706742638782,-5092.92911566,0.00028086,2]
[313100553,1706742638791,-3652.93282624,0.00028112,3]
[313100555,1706742638800,-1000.0,0.00028394,2]
[313100557,1706742638811,-450.0,0.00029,3]
[313100559,1706742638820,-782.89,0.00029149,2]
[313100561,1706742638830,-2751.0,0.000292,3]
[313100563,1706742638839,-5126.0,0.000292,3]
[313100565,1706742638849,-346.68,0.00029444,2]
[313100566,1706742638858,-199.06433532,0.000295,3]
[313100567,1706742638867,-5092.92911566,0.00029814,2]
[313100568,1706742638876,-71286.30077148,0.000299,2]
[313100569,1706742638886,-358.29747375,0.0003,2]
[313100570,1706742638895,-155.0,0.0003,2]
[313100571,1706742638904,-500.0,0.0003,2]
[313100572,1706742638914,-4753.6589718,0.0003,4]
[313100573,1706742638923,-155.82,0.00030137,2]
[313100574,1706742638932,-782.89,0.00030793,2]
[313100575,1706742638942,-3652.93282624,0.0003087,5]
[313100576,1706742638951,-500.0,0.00031,3]
[313100577,1706742638960,-1000.0,0.00031234,2]
[313100578,1706742638970,-205.0,0.00031366,13]
[313100579,1706742638979,-151.95,0.00031453,2]
[313100580,1706742638988,-5092.92911566,0.00031543,3]
[313100581,1706742638997,-180.0,0.00031644,2]
[313100582,1706742639006,-346.68,0.00031708,2]
[313100583,1706742639016,-285215.203823,0.000318,3]
[313100584,1706742639025,-155.0,0.00032,2]
[313100585,1706742639035,-1602.46514678,0.00032,2]
[313100586,1706742639046,-1903.89194556,0.00032014,28]
[313100587,1706742639055,-156.53137645,0.00032233,2]
[313100588,1706742639065,-203.03348937,0.000323,2]
[313100589,1706742639078,-333.07208651,0.000323,2]
[313100590,1706742639087,-852.54803618,0.000323,2]
[313100591,1706742639097,-6425.02754568,0.000323,2]
[313100592,1706742639106,-174.81674429,0.00032407,4]
[313100593,1706742639116,-236.0,0.00032678,2]
[313100594,1706742639126,-5000.0,0.000327,3]
[313100595,1706742639135,-160002.82604466,0.000328,2]
[313100596,1706742639144,-550.0,0.00033,3]
[313100597,1706742639155,-573.41,0.00033151,120]
[313100598,1706742639166,-5092.92911566,0.00033271,5]
[313100599,1706742639175,-3652.93282624,0.00033627,6]
[313100600,1706742639184,-155.82,0.0003379,2]
[313100601,1706742639193,-346.68,0.00033972,2]
[313100602,1706742639202,-507.31895461,0.00034,4]
[313100603,1706742639212,-1000.0,0.00034073,2]
[313100604,1706742639221,-2030.29094494,0.000349,2]
[313100605,1706742639230,-2030.29094484,0.000349,2]
[313100606,1706742639239,-2030.29094484,0.000349,2]
[313100607,1706742639248,-2030.29094484,0.000349,2]
[313100608,1706742639258,-2030.29094484,0.000349,2]
[313100609,1706742639266,-2030.29094484,0.000349,2]
[313100610,1706742639275,-2030.29094484,0.000349,2]
[313100611,1706742639285,-2030.29094484,0.000349,2]
[313100612,1706742639294,-205.0,0.00034945,19]
[313100613,1706742639304,-5092.92911566,0.00035,7]
[313100614,1706742639314,-3000.0,0.00035,2]
[313100615,1706742639323,-1264.50569763,0.00035,4]
[313100616,1706742639333,-679.84539541,0.00035,4]
[313100617,1706742639342,-5000.0,0.00035,7]
[313100618,1706742639354,-1833.59,0.00035,5]
[313100619,1706742639363,-1811.37,0.00035,5]
[313100620,1706742639372,-1783.28,0.00035,5]
[313100621,1706742639381,-1811.35,0.00035,5]
[313100622,1706742639391,-1784.07,0.00035,5]
[313100623,1706742639400,-1796.43,0.00035,5]
[313100624,1706742639410,-600.0,0.00035,3]
[313100625,1706742639421,-23304.24464602,0.00035,2]
[313100626,1706742639430,-2030.29094484,0.00035532,2]
[313100627,1706742639441,-2566.93,0.00035616,2]
[313100628,1706742639450,-2334.82,0.00035616,2]
[313100629,1706742639459,-1928.34,0.00035616,2]
[313100630,1706742639469,-2102.23623986,0.00035683,7]
[313100631,1706742639478,-5842.66229574,0.00035683,7]
[313100632,1706742639487,-443.96137438,0.00035683,7]
[313100633,1706742639496,-400.51782698,0.00035689,15]
[313100634,1706742639505,-191.04450521,0.00035689,15]
[313100635,1706742639514,-500.0,0.00035689,15]
[313100636,1706742639523,-371.72876075,0.00035689,15]
[313100637,1706742639532,-355.48877921,0.00035689,15]
[313100638,1706742639542,-377.56098385,0.00035689,15]
[313100639,1706742639554,-415.55929241,0.00035689,15]
[313100640,1706742639565,-500.0,0.00035689,15]
[313100641,1706742639574,-357.75842331,0.00035689,15]
[313100642,1706742639584,-156.64,0.000357,7]
[313100643,1706742639593,-2530.75590545,0.00035813,4]
[313100644,1706742639602,-1000.0,0.000362,2]
[313100645,1706742639611,-346.68,0.00036236,2]
[313100646,1706742639620,-3652.93282624,0.00036385,7]
[313100647,1706742639629,-224.63308121,0.000365,2]
[313100648,1706742639638,-2476.20957475,0.00036567,4]
[313100649,1706742639648,-5092.92911566,0.00036728,9]
[313100650,1706742639657,-150.0,0.000368,17]
[313100651,1706742639667,-2140.10476988,0.00036877,2]
[313100652,1706742639675,-150.0,0.00036879,2]
[313100653,1706742639685,-150.0,0.00036879,2]
[313100654,1706742639695,-444210.49421171,0.0003688,2]
[313100655,1706742639704,-336.19915372,0.0003688,2]
[313100656,1706742639713,-175.3104373,0.0003688,2]
[313100657,1706742639724,-87242.628,0.00036899,2]
[313100658,1706742639733,-1396.96,0.000369,7]
[313100659,1706742639744,-156.53137645,0.000369,2]
[313100660,1706742639945,-2334.82,0.00036934,2]
[313100661,1706742639956,-1071.31504913,0.00036946,3]
[313100662,1706742639966,-1099.39419882,0.00036946,3]
[313100663,1706742639975,-151.0,0.00036957,7]
[313100664,1706742639984,-173.101964,0.00036973,2]
[313100665,1706742639993,-178.652212,0.00036973,2]
[313100666,1706742640002,-6521.721096,0.00036973,2]
[313100667,1706742640011,-2645.945971,0.00036973,2]
[313100668,1706742640021,-194.880167,0.00036973,2]
[313100669,1706742640030,-172.45965,0.00036973,2]
[313100670,1706742640040,-162751.81606046,0.00036999,5]
[313100671,1706742640049,-650.0,0.00037,3]
[313100672,1706742640059,-2030.29094484,0.00037111,2]
[313100673,1706742640069,-174.81674429,0.00037161,10]
[313100674,1706742640080,-247.42374992,0.00037321,4]
[313100675,1706742640089,-281.61083133,0.00037321,4]
[313100676,1706742640098,-175.93774684,0.00037321,4]
[313100677,1706742640108,-6521.721096,0.00037435,2]
[313100678,1706742640117,-2645.945971,0.00037435,2]
[313100679,1706742640126,-194.880167,0.00037435,2]
[313100680,1706742640136,-155.82,0.00037443,2]
[313100681,1706742640146,-202.58121259,0.000375,2]
[313100682,1706742640156,-227.70232845,0.0003751,4]
[313100683,1706742640164,-172.09680919,0.00037587,4]
[313100684,1706742640173,-310.33868222,0.00037588,4]
[313100685,1706742640183,-197.04678915,0.00037588,4]
[313100686,1706742640192,-1093.99229278,0.00037589,3]
[313100687,1706742640201,-156.64,0.000376,7]
[313100688,1706742640210,-200.0,0.00037608,5]
[313100689,1706742640222,-1021.34265992,0.00037698,2]
[313100690,1706742640266,-1062.34025431,0.00037698,4]
[313100691,1706742640275,-155.0,0.00037698,2]
[313100692,1706742640284,-303.8458318,0.00037698,4]
[313100693,1706742640294,-155.0,0.00037699,4]
[313100694,1706742640303,-247.03342612,0.00037699,4]
[313100695,1706742640313,-5783.07130422,0.000377,15]
[313100696,1706742640322,-200.0,0.000377,2]
[313100697,1706742640331,-153.96,0.000377,3]
[313100698,1706742640340,-153.96,0.000377,3]
[313100699,1706742640349,-153.96,0.000377,3]
[313100700,1706742640359,-3864.60286218,0.000377,3]
[313100701,1706742640368,-151.0,0.00037711,4]
[313100702,1706742640377,-2781.48,0.000378,3]
[313100703,1706742640387,-2781.48,0.000378,3]
[313100704,1706742640396,-2781.48,0.000378,3]
[313100705,1706742640405,-2781.48,0.000378,3]
[313100706,1706742640414,-2781.48,0.000378,3]
[313100707,1706742640423,-2781.48,0.000378,3]
[313100708,1706742640432,-2781.48,0.000378,3]
[313100709,1706742640441,-2781.48,0.000378,3]
[313100710,1706742640451,-2781.48,0.000378,3]
[313100711,1706742640460,-2781.48,0.000378,3]
[313100712,1706742640469,-2781.48,0.000378,3]
[313100713,1706742640479,-2781.48,0.000378,3]
[313100714,1706742640488,-2781.48,0.000378,3]
[313100715,1706742640497,-2781.48,0.000378,3]
[313100716,1706742640506,-2781.48,0.000378,3]
[313100717,1706742640515,-2781.48,0.000378,3]
[313100718,1706742640524,-2781.48,0.000378,3]
[313100719,1706742640533,-2781.48,0.000378,3]
[313100720,1706742640542,-2781.48,0.000378,3]
[313100721,1706742640552,-2781.48,0.000378,3]
[313100722,1706742640562,-532.0,0.00037811,5]
[313100723,1706742640571,-178.652212,0.00037897,2]
[313100724,1706742640580,-6521.721096,0.00037897,2]
[313100725,1706742640590,-2645.945971,0.00037897,2]
[313100726,1706742640599,-194.880167,0.00037897,2]
[313100727,1706742640608,-4280.20953976,0.00037897,2]
[313100728,1706742640617,-150.0,0.00037899,2]
[313100729,1706742640626,-150.0,0.00037899,2]
[313100730,1706742640635,-4374.34206661,0.000379,7]
[313100731,1706742640644,-164832.92630774,0.000379,3]
[313100732,1706742640674,-785.2873475,0.000379,3]
[313100733,1706742640853,-287.3,0.00023,2]
[313100734,1706742640863,-627.38500001,0.000379,3]
[313100735,1706742641347,-3166.0258,0.000379,3]
[313100802,1706742642206,416.7405,0.000225,2]
[313100816,1706742642992,-2842.31302923,0.000379,3]
[313100817,1706742643003,-279.20136684,0.000379,3]
[313100825,1706742646091,-1605.98093766,0.000379,3]
[313100826,1706742646151,-14113.77427899,0.000379,3]
[313100827,1706742646167,-33253.27123625,0.000379,3]
[313100828,1706742646180,-10165.99942465,0.000379,3]
[313100829,1706742646261,-2011.16743691,0.000379,3]
[313100830,1706742646273,-1143.40000001,0.000379,3]
[313100849,1706742756403,7359.9022,0.000225,2]
[313100850,1706742781846,37114.6442,0.000225,2]
[313100851,1706742786170,1000.0,0.000225,2]
[313100852,1706743657826,513.26819885,0.000225,2]
[313100853,1706743660776,513.26819885,0.000225,2]
[313100854,1706743662818,513.26819885,0.000225,2]
[313100855,1706743667324,513.26819885,0.000225,2]
[313100856,1706743671829,513.26819885,0.000225,2]
[313100861,1706743832160,-385.46359091,0.00022567,2]
[313100862,1706743832169,-623.61336508,0.00022568,2]
[313100863,1706743832179,-155.0,0.00022569,2]
[313100864,1706743832188,-208.20948336,0.0002257,2]
[313100865,1706743832197,-262.05030768,0.000229,2]
[313100866,1706743832206,-244.21,0.00023,2]
[313100867,1706743832215,-262.05030764,0.00023674,2]
[313100868,1706743832224,-36.45361681,0.00024447,2]
[313100869,1706743832236,-225.59669083,0.00024447,2]
[313100870,1706743832245,-187.17623212,0.00025221,2]
[313100871,1706743832260,-74.87407552,0.00025221,2]
[313100872,1706743832270,-150.0,0.00025993,2]
[313100873,1706743832279,-262.05030764,0.00025994,2]
[313100874,1706743832288,-1475.13561684,0.00025994,2]
[313100875,1706743832299,-1645.13202341,0.00025994,2]
[313100876,1706743832314,-351.96645211,0.00025994,2]
[313100877,1706743832326,-21121.50590764,0.00025994,2]
[313100878,1706743832335,-262.05030764,0.00026768,2]
[313100879,1706743832344,-262.05030764,0.00027541,2]
[313100880,1706743832354,-262.05030764,0.00028315,2]
[313100881,1706743832364,-535.64853932,0.00028425,2]
[313100882,1706743832373,-210.0,0.00028593,2]
[313100883,1706743832382,-262.05030764,0.00029089,2]
[313100884,1706743832392,-262.05030764,0.00029862,2]
[313100885,1706743832401,-500.0,0.0003,2]
[313100886,1706743832410,-155.0,0.0003,2]
[313100887,1706743832419,-178.78236494,0.00030636,2]
[313100888,1706743832433,-83.2679427,0.00030636,2]
[313100889,1706743832444,-241.23,0.00031109,2]
[313100890,1706743832454,-262.05030764,0.00031409,2]
[313100891,1706743832464,-240.0,0.00031452,2]
[313100892,1706743832473,-156.25094584,0.00032,2]
[313100893,1706743832483,-262.05030764,0.00032183,2]
[313100894,1706743832492,-1000.0,0.00032947,2]
[313100895,1706743832502,-250.0,0.00032949,2]
[313100896,1706743832513,-262.05030764,0.00032957,2]
[313100897,1706743832524,-150.0,0.00032979,2]
[313100898,1706743832534,-250.0,0.00033027,2]
[313100899,1706743832544,-2000.0,0.00033157,2]
[313100900,1706743832553,-150.0,0.00033285,2]
[313100901,1706743832563,-241.23,0.00033373,2]
[313100902,1706743832572,-214.6075638,0.00033425,10]
[313100904,1706743832581,-156.97,0.00033426,2]
[313100906,1706743832590,-156.97,0.00033523,2]
[313100908,1706743832600,-200.0,0.00033606,5]
[313100909,1706743832610,-156.97,0.0003362,2]
[313100910,1706743832620,-156.97,0.00033717,2]
[313100911,1706743832630,-262.05030764,0.0003373,2]
[313100912,1706743832639,-1711.28,0.0003379,2]
[313100913,1706743832648,-2500.0,0.00033794,3]
[313100914,1706743832658,-156.97,0.00033813,2]
[313100915,1706743832667,-156.97,0.0003391,2]
[313100916,1706743832677,-156.97,0.00034007,2]
[313100917,1706743832686,-156.97,0.00034104,2]
[313100918,1706743832695,-156.97,0.000342,2]
[313100919,1706743832704,-156.97,0.00034297,2]
[313100920,1706743832713,-156.97,0.00034394,2]
[313100921,1706743832722,-156.97,0.00034491,2]
[313100922,1706743832732,-262.05030764,0.00034504,2]
[313100923,1706743832740,-156.97,0.00034587,2]
[313100924,1706743832750,-156.97,0.00034684,2]
[313100925,1706743832760,-156.97,0.00034781,2]
[313100926,1706743832768,-156.97,0.00034878,2]
[313100927,1706743832777,-156.97,0.00034974,2]
[313100928,1706743832787,-5000.0,0.00035,7]
[313100929,1706743832796,-1264.50569763,0.00035,4]
[313100930,1706743832805,-156.97,0.00035071,2]
[313100931,1706743832813,-156.97,0.00035168,2]
[313100932,1706743832822,-262.05030764,0.00035277,2]
[313100933,1706743832831,-936.66368189,0.00035483,2]
[313100934,1706743832840,-499.99,0.00035484,2]
[313100935,1706743832849,-330.28,0.00035486,2]
[313100936,1706743832858,-204.1065,0.00035486,2]
[313100937,1706743832868,-205.0,0.00035525,2]
[313100938,1706743832877,-1549.87,0.00035581,2]
[313100939,1706743832886,-1959.07,0.00035581,2]
[313100940,1706743832895,-1400.89,0.00035616,2]
[313100941,1706743832906,-241.23,0.00035637,2]
[313100942,1706743832916,-232.70236134,0.00035683,7]
[313100943,1706743832927,-1522.16728231,0.00035683,7]
[313100944,1706743832937,-622.70479731,0.00035683,7]
[313100945,1706743832946,-230.91785834,0.00035683,7]